fUSD/lending_fUSD_20250223
["ID","MTS","AMOUNT","RATE_DAILY","PERIOD"]
[354145675,1740287438578,-501.19789933,0.00010958,2]
[354145677,1740287438586,-500.0,0.00010958,2]
[354145679,1740287438596,-500.0,0.00010958,2]
[354145681,1740287438605,-500.0,0.00010958,2]
[354145683,1740287438614,-500.0,0.00010958,2]
[354145685,1740287438624,-500.0,0.00010958,2]
[354145687,1740287438633,-500.0,0.00010958,2]
[354145689,1740287438642,-507.72835843,0.00010958,2]
[354145691,1740287438651,-500.35879866,0.00010958,2]
[354145693,1740287438660,-500.0,0.00010958,2]
[354145695,1740287438669,-505.75538424,0.00010958,2]
[354145697,1740287438678,-500.0,0.00010958,2]
[354145698,1740287438687,-504.01383848,0.00010958,2]
[354145699,1740287438697,-500.0,0.00010958,2]
[354145700,1740287438706,-500.0,0.00010958,2]
[354145701,1740287438717,-500.0,0.00010958,2]
[354145702,1740287438728,-500.0,0.00010958,2]
[354145703,1740287438742,-215.35391096,0.00010958,2]
[354145704,1740287438755,-507.42502465,0.00010958,2]
[354145705,1740287438767,-500.0,0.00010958,2]
[354145706,1740287438777,-500.0,0.00010958,2]
[354145707,1740287438788,-500.0,0.00010958,2]
[354145708,1740287438799,-500.0,0.00010958,2]
[354145709,1740287438811,-501.22742141,0.00010958,2]
[354145710,1740287438824,-500.0,0.00010958,2]
[354145711,1740287438835,-500.0,0.00010958,2]
[354145712,1740287438847,-500.0,0.00010958,2]
[354145713,1740287438858,-442.67533711,0.00010958,2]
[354145714,1740287438869,-508.62409428,0.00010958,2]
[354145715,1740287438880,-500.0,0.00010958,2]
[354145716,1740287438891,-500.0,0.00010958,2]
[354145717,1740287438902,-500.0,0.00010958,2]
[354145718,1740287438912,-500.0,0.00010958,2]
[354145719,1740287438922,-500.0,0.00010958,2]
[354145720,1740287438932,-500.0,0.00010958,2]
[354145721,1740287438944,-500.0,0.00010958,2]
[354145722,1740287438955,-505.61583226,0.00010958,2]
[354145723,1740287438966,-500.0,0.00010958,2]
[354145724,1740287438978,-500.0,0.00010958,2]
[354145725,1740287438989,-503.87263316,0.00010958,2]
[354145726,1740287439000,-500.0,0.00010958,2]
[354145727,1740287439017,-583.04,0.00010958,2]
[354145728,1740287439029,-500.0,0.00010958,2]
[354145729,1740287439041,-500.0,0.00010958,2]
[354145730,1740287439052,-500.0,0.00010958,2]
[354145731,1740287439063,-500.0,0.00010958,2]
[354145732,1740287439076,-639.31,0.00010958,2]
[354145733,1740287439088,-503.90952369,0.00010958,2]
[354145734,1740287439100,-500.0,0.00010958,2]
[354145735,1740287439111,-462.7292261,0.00010958,2]
[354145736,1740287439123,-515.28439127,0.00010958,2]
[354145737,1740287439134,-502.33105916,0.00010958,2]
[354145738,1740287439145,-500.0,0.00010958,2]
[354145739,1740287439156,-500.0,0.00010958,2]
[354145740,1740287439167,-532.5893666,0.00010958,2]
[354145741,1740287439180,-516.11140113,0.00010958,2]
[354145742,1740287439191,-500.0,0.00010958,2]
[354145743,1740287439202,-500.0,0.00010958,2]
[354145744,1740287439212,-500.0,0.00010958,2]
[354145745,1740287439223,-500.0,0.00010958,2]
[354145746,1740287439233,-640.06523704,0.00010958,2]
[354145747,1740287439242,-500.0,0.00010958,2]
[354145748,1740287439253,-504.69164572,0.00010958,2]
[354145749,1740287439264,-504.68521583,0.00010958,2]
[354145750,1740287439278,-504.93,0.00010958,2]
[354145751,1740287439292,-510.85730727,0.00010958,2]
[354145752,1740287439302,-249.62094679,0.00010958,2]
[354145753,1740287439311,-506.19155354,0.00010958,2]
[354145754,1740287439320,-507.11982515,0.00010958,2]
[354145755,1740287439330,-500.0,0.00010958,2]
[354145756,1740287439341,-238.74086132,0.00010958,2]
[354145757,1740287439353,-500.0,0.00010958,2]
[354145758,1740287439364,-504.2580333,0.00010958,2]
[354145759,1740287439375,-505.44221272,0.00010958,2]
[354145760,1740287439386,-501.18093255,0.00010958,2]
[354145761,1740287439395,-500.0,0.00010958,2]
[354145762,1740287439406,-502.3135987,0.00010958,2]
[354145763,1740287439415,-500.0,0.00010958,2]
[354145764,1740287439426,-418.0141235,0.00010958,2]
[354145765,1740287439436,-500.0,0.00010958,2]
[354145766,1740287439446,-503.99702905,0.00010958,2]
[354145767,1740287439457,-500.0,0.00010958,2]
[354145768,1740287439468,-500.0,0.00010958,2]
[354145769,1740287439478,-388.03149536,0.00010958,2]
[354145770,1740287439488,-500.0,0.00010958,2]
[354145771,1740287439499,-506.7993346,0.00010958,2]
[354145772,1740287439509,-500.0,0.00010958,2]
[354145773,1740287439520,-500.0,0.00010958,2]
[354145774,1740287439531,-641.65341779,0.00010958,2]
[354145775,1740287439541,-501.5420397,0.00010958,2]
[354145776,1740287439551,-500.0,0.00010958,2]
[354145777,1740287439562,-504.8401677,0.00010958,2]
[354145778,1740287439573,-500.0,0.00010958,2]
[354145779,1740287439585,-503.26378712,0.00010958,2]
[354145780,1740287439595,-503.04755887,0.00010958,2]
[354145781,1740287439606,-500.0,0.00010958,2]
[354145782,1740287439616,-493.9772485,0.00010958,2]
[354145783,1740287439627,-500.0,0.00010958,2]
[354145784,1740287439638,-500.0,0.00010958,2]
[354145785,1740287439649,-500.0,0.00010958,2]
[354145786,1740287439659,-500.0,0.00010958,2]
[354145787,1740287439671,-506.10494175,0.00010958,2]
[354145788,1740287439682,-506.2155281,0.00010958,2]
[354145789,1740287439694,-501.4976237,0.00010958,2]
[354145790,1740287439705,-500.0,0.00010958,2]
[354145791,1740287439717,-515.62630272,0.00010958,2]
[354145792,1740287439729,-504.22813375,0.00010958,2]
[354145793,1740287439740,-511.87623074,0.00010958,2]
[354145794,1740287439752,-500.0,0.00010958,2]
[354145795,1740287439764,-500.0,0.00010958,2]
[354145796,1740287439775,-500.0,0.00010958,2]
[354145797,1740287439786,-505.90293388,0.00010958,2]
[354145798,1740287439798,-503.28304203,0.00010958,2]
[354145799,1740287439809,-500.0,0.00010958,2]
[354145800,1740287439820,-500.0,0.00010958,2]
[354145801,1740287439832,-501.07848531,0.00010958,2]
[354145802,1740287439843,-538.07867408,0.00010958,2]
[354145804,1740287439854,-500.0,0.00010958,2]
[354145806,1740287439865,-500.0,0.00010958,2]
[354145808,1740287439876,-500.0,0.00010958,2]
[354145809,1740287439887,-505.51470334,0.00010958,2]
[354145810,1740287439898,-500.0,0.00010958,2]
[354145811,1740287439909,-500.0,0.00010958,2]
[354145812,1740287439920,-505.41972559,0.00010958,2]
[354145813,1740287439930,-506.27887728,0.00010958,2]
[354145814,1740287439941,-499.89795023,0.00010958,2]
[354145815,1740287439951,-500.0,0.00010958,2]
[354145816,1740287439962,-500.0,0.00010958,2]
[354145817,1740287439973,-501.54103905,0.00010958,2]
[354145818,1740287439983,-509.56146479,0.00010958,2]
[354145819,1740287439994,-500.0,0.00010958,2]
[354145820,1740287440005,-501.70773787,0.00010958,2]
[354145821,1740287440016,-503.5267984,0.00010958,2]
[354145822,1740287440027,-500.0,0.00010958,2]
[354145823,1740287440038,-500.0,0.00010958,2]
[354145824,1740287440050,-500.0,0.00010958,2]
[354145825,1740287440060,-151.0,0.00010958,2]
[354145826,1740287440071,-500.0,0.00010958,2]
[354145827,1740287440082,-500.0,0.00010958,2]
[354145828,1740287440092,-604.57564017,0.00010958,2]
[354145829,1740287440102,-503.32472334,0.00010958,2]
[354145830,1740287440113,-505.43441616,0.00010958,2]
[354145831,1740287440123,-500.0,0.00010958,2]
[354145832,1740287440136,-500.50512364,0.00010958,2]
[354145833,1740287440146,-500.0,0.00010958,2]
[354145834,1740287440157,-505.83684104,0.00010958,2]
[354145835,1740287440167,-500.0,0.00010958,2]
[354145836,1740287440178,-500.86909694,0.00010958,2]
[354145837,1740287440188,-500.0,0.00010958,2]
[354145838,1740287440199,-501.14642648,0.00010958,2]
[354145839,1740287440210,-507.37885253,0.00010958,2]
[354145840,1740287440221,-502.38783066,0.00010958,2]
[354145841,1740287440232,-512.66165738,0.00010958,2]
[354145842,1740287440255,-500.0,0.00010958,2]
[354145843,1740287440268,-509.19021958,0.00010958,2]
[354145844,1740287440281,-509.29165006,0.00010958,2]
[354145845,1740287440295,-500.0,0.00010958,2]
[354145846,1740287440309,-500.0,0.00010958,2]
[354145847,1740287440322,-500.0,0.00010958,2]
[354145848,1740287440335,-500.0,0.00010958,2]
[354145849,1740287440347,-500.0,0.00010958,2]
[354145850,1740287440359,-502.55960358,0.00010958,2]
[354145851,1740287440372,-500.0,0.00010958,2]
[354145852,1740287440382,-500.0,0.00010958,2]
[354145853,1740287440391,-501.72392178,0.00010958,2]
[354145854,1740287440400,-509.49008597,0.00010958,2]
[354145855,1740287440409,-500.0,0.00010958,2]
[354145856,1740287440418,-500.0,0.00010958,2]
[354145857,1740287440427,-500.0,0.00010958,2]
[354145858,1740287440437,-500.0,0.00010958,2]
[354145859,1740287440446,-501.50709445,0.00010958,2]
[354145860,1740287440455,-500.0,0.00010958,2]
[354145861,1740287440464,-501.75177576,0.00010958,2]
[354145862,1740287440474,-500.0,0.00010958,2]
[354145863,1740287440483,-500.0,0.00010958,2]
[354145866,1740287440713,-501.68325089,0.00010958,2]
[354145869,1740287440727,-500.0,0.00010958,2]
[354145871,1740287440737,-500.0,0.00010958,2]
[354145872,1740287440746,-505.17624336,0.00010958,2]
[354145874,1740287440755,-500.0,0.00010958,2]
[354145877,1740287440765,-500.0,0.00010958,2]
[354145880,1740287440774,-500.0,0.00010958,2]
[354145882,1740287440783,-507.30722919,0.00010958,2]
[354145885,1740287440792,-500.0,0.00010958,2]
[354145887,1740287440801,-500.00000001,0.00010958,2]
[354145888,1740287440810,-586.16346694,0.00010958,2]
[354145890,1740287440819,-500.0,0.00010958,2]
[354145893,1740287440829,-500.0,0.00010958,2]
[354145894,1740287440838,-500.0,0.00010958,2]
[354145896,1740287440847,-501.82046801,0.00010958,2]
[354145898,1740287440857,-500.0,0.00010958,2]
[354145900,1740287440866,-399.79,0.00010958,2]
[354145902,1740287440875,-500.0,0.00010958,2]
[354145904,1740287440884,-500.0,0.00010958,2]
[354145906,1740287440893,-501.63787989,0.00010958,2]
[354145908,1740287440902,-320.56,0.00010958,2]
[354145910,1740287440911,-538.85538647,0.00010958,2]
[354145912,1740287440920,-500.0,0.00010958,2]
[354145914,1740287440930,-501.624146,0.00010958,2]
[354145916,1740287440939,-500.0,0.00010958,2]
[354145918,1740287440948,-500.0,0.00010958,2]
[354145921,1740287440957,-501.75735336,0.00010958,2]
[354145922,1740287440967,-509.75068463,0.00010958,2]
[354145924,1740287440975,-562.47545531,0.00010958,2]
[354145926,1740287440984,-500.0,0.00010958,2]
[354145928,1740287440993,-500.0,0.00010958,2]
[354145930,1740287441003,-503.7489516,0.00010958,2]
[354145932,1740287441015,-241.37486846,0.00010958,2]
[354145937,1740287441050,-258.62513154,0.00010958,2]
[354145939,1740287441060,-503.323433,0.00010958,2]
[354145941,1740287441069,-500.0,0.00010958,2]
[354145943,1740287441078,-500.0,0.00010958,2]
[354145945,1740287441087,-85.12449296,0.00010958,2]
[354145947,1740287441099,-250.0,0.00010958,2]
[354145950,1740287441110,-164.87550704,0.00010958,2]
[354145952,1740287441119,-500.0,0.00010958,2]
[354145954,1740287441129,-425.03115794,0.00010958,2]
[354145956,1740287441143,-74.96884206,0.00010958,2]
[354145958,1740287441152,-301.51,0.00010958,2]
[354145960,1740287441162,-510.7,0.00010958,2]
[354145962,1740287441173,-503.29704137,0.00010958,2]
[354145964,1740287441182,-620.90189249,0.00010958,2]
[354145966,1740287441192,-501.82453455,0.00010958,2]
[354145968,1740287441201,-512.74656324,0.00010958,2]
[354145970,1740287441210,-500.0,0.00010958,2]
[354145972,1740287441219,-502.42491072,0.00010958,2]
[354145973,1740287441228,-500.0,0.00010958,2]
[354145974,1740287441237,-500.0,0.00010958,2]
[354145975,1740287441247,-502.10391776,0.00010958,2]
[354145976,1740287441256,-500.0,0.00010958,2]
[354145977,1740287441266,-351.78119446,0.00010958,2]
[354145978,1740287441275,-416.62,0.00010958,2]
[354145979,1740287441284,-500.0,0.00010958,2]
[354145980,1740287441293,-503.11770408,0.00010958,2]
[354145981,1740287441302,-150.67,0.00010958,2]
[354145982,1740287441311,-331.86437277,0.00010958,2]
[354145984,1740287441320,-387.3,0.00010958,2]
[354145986,1740287441329,-500.0,0.00010958,2]
[354145988,1740287441338,-477.42,0.00010958,2]
[354145990,1740287441347,-501.64977523,0.00010958,2]
[354145992,1740287441357,-506.33121724,0.00010958,2]
[354145995,1740287441367,-500.0,0.00010958,2]
[354145996,1740287441376,-500.0,0.00010958,2]
[354145999,1740287441385,-500.0,0.00010958,2]
[354146000,1740287441394,-199.3710491,0.00010958,2]
[354146002,1740287441403,-500.0,0.00010958,2]
[354146004,1740287441412,-500.0,0.00010958,2]
[354146006,1740287441421,-500.0,0.00010958,2]
[354146008,1740287441429,-500.0,0.00010958,2]
[354146010,1740287441438,-501.31490043,0.00010958,2]
[354146012,1740287441447,-502.5341081,0.00010958,2]
[354146014,1740287441456,-508.55,0.00010958,2]
[354146016,1740287441465,-180.98,0.00010958,2]
[354146018,1740287441474,-172.7783348,0.00010958,2]
[354146020,1740287441483,-500.0,0.00010958,2]
[354146022,1740287441492,-509.18142852,0.00010958,2]
[354146024,1740287441501,-500.0,0.00010958,2]
[354146026,1740287441510,-272.79,0.00010958,2]
[354146028,1740287441519,-283.64901,0.00010958,2]
[354146030,1740287441529,-199.28,0.00010958,2]
[354146032,1740287441539,-518.00568558,0.00010958,2]
[354146034,1740287441548,-299.81,0.00010958,2]
[354146036,1740287441558,-500.0,0.00010958,2]
[354146038,1740287441568,-503.83211256,0.00010958,2]
[354146040,1740287441577,-632.86386188,0.00010958,2]
[354146042,1740287441586,-500.0,0.00010958,2]
[354146044,1740287441595,-502.02276464,0.00010958,2]
[354146046,1740287441604,-500.0,0.00010958,2]
[354146048,1740287441613,-501.7781202,0.00010958,2]
[354146050,1740287441622,-529.6,0.00010958,2]
[354146052,1740287441631,-317.32,0.00010958,2]
[354146054,1740287441640,-179.47,0.00010958,2]
[354146056,1740287441649,-510.8472397,0.00010958,2]
[354146058,1740287441659,-500.0,0.00010958,2]
[354146060,1740287441668,-480.55,0.00010958,2]
[354146062,1740287441677,-500.0,0.00010958,2]
[354146064,1740287441686,-386.79,0.00010958,2]
[354146066,1740287441695,-500.0,0.00010958,2]
[354146068,1740287441704,-500.0,0.00010958,2]
[354146070,1740287441713,-502.2836456,0.00010958,2]
[354146072,1740287441723,-502.54762887,0.00010958,2]
[354146074,1740287441732,-335.58,0.00010958,2]
[354146076,1740287441741,-239.23,0.00010958,2]
[354146078,1740287441750,-200.69,0.00010958,2]
[354146080,1740287441759,-515.17003482,0.00010958,2]
[354146082,1740287441769,-346.16,0.00010958,2]
[354146084,1740287441778,-501.41229492,0.00010958,2]
[354146086,1740287441788,-633.78,0.00010958,2]
[354146088,1740287441797,-633.78,0.00010958,2]
[354146090,1740287441807,-633.78,0.00010958,2]
[354146092,1740287441815,-633.78,0.00010958,2]
[354146094,1740287441825,-500.0,0.00010958,2]
[354146096,1740287441836,-199.64,0.00010958,2]
[354146098,1740287441845,-500.0,0.00010958,2]
[354146100,1740287441855,-328.81,0.00010958,2]
[354146102,1740287441865,-500.0,0.00010958,2]
[354146104,1740287441874,-432.75,0.00010958,2]
[354146107,1740287441884,-500.0,0.00010958,2]
[354146108,1740287441894,-500.0,0.00010958,2]
[354146111,1740287441904,-474.55940908,0.00010958,2]
[354146113,1740287441913,-204.63,0.00010958,2]
[354146115,1740287441922,-500.0,0.00010958,2]
[354146117,1740287441932,-504.14891415,0.00010958,2]
[354146119,1740287441942,-276.95,0.00010958,2]
[354146121,1740287441951,-500.0,0.00010958,2]
[354146123,1740287441961,-500.0,0.00010958,2]
[354146125,1740287441970,-500.0,0.00010958,2]
[354146127,1740287441979,-500.0,0.00010958,2]
[354146129,1740287441988,-525.46,0.00010958,2]
[354146131,1740287441998,-500.0,0.00010958,2]
[354146133,1740287442009,-502.21679088,0.00010958,2]
[354146135,1740287442020,-500.0,0.00010958,2]
[354146137,1740287442030,-500.0,0.00010958,2]
[354146139,1740287442040,-500.0,0.00010958,2]
[354146141,1740287442051,-500.0,0.00010958,2]
[354146143,1740287442060,-500.0,0.00010958,2]
[354146145,1740287442069,-179.14,0.00010958,2]
[354146147,1740287442079,-500.0,0.00010958,2]
[354146149,1740287442089,-500.0,0.00010958,2]
[354146151,1740287442099,-513.16080726,0.00010958,2]
[354146153,1740287442107,-154.9609083,0.00010958,2]
[354146155,1740287442116,-500.0,0.00010958,2]
[354146157,1740287442125,-151.0,0.00010958,2]
[354146159,1740287442134,-500.0,0.00010958,2]
[354146161,1740287442143,-500.0,0.00010958,2]
[354146163,1740287442153,-500.0,0.00010958,2]
[354146165,1740287442164,-500.0,0.00010958,2]
[354146167,1740287442173,-523.23929188,0.00010958,2]
[354146169,1740287442183,-340.51,0.00010958,2]
[354146171,1740287442191,-500.0,0.00010958,2]
[354146173,1740287442201,-506.72955301,0.00010958,2]
[354146175,1740287442210,-500.0,0.00010958,2]
[354146177,1740287442220,-500.0,0.00010958,2]
[354146179,1740287442229,-500.0,0.00010958,2]
[354146181,1740287442239,-500.0,0.00010958,2]
[354146183,1740287442248,-508.6455185,0.00010958,2]
[354146185,1740287442257,-402.14,0.00010958,2]
[354146187,1740287442268,-500.0,0.00010958,2]
[354146189,1740287442277,-243.13402731,0.00010958,2]
[354146191,1740287442286,-500.0,0.00010958,2]
[354146193,1740287442295,-500.0,0.00010958,2]
[354146195,1740287442306,-500.0,0.00010958,2]
[354146197,1740287442315,-500.0,0.00010958,2]
[354146199,1740287442324,-451.88,0.00010958,2]
[354146201,1740287442334,-500.0,0.00010958,2]
[354146204,1740287442343,-500.0,0.00010958,2]
[354146206,1740287442353,-500.0,0.00010958,2]
[354146208,1740287442362,-500.0,0.00010958,2]
[354146210,1740287442371,-500.0,0.00010958,2]
[354146212,1740287442381,-500.0,0.00010958,2]
[354146213,1740287442390,-500.0,0.00010958,2]
[354146215,1740287442400,-500.0,0.00010958,2]
[354146217,1740287442409,-500.0,0.00010958,2]
[354146219,1740287442419,-500.0,0.00010958,2]
[354146221,1740287442428,-500.0,0.00010958,2]
[354146224,1740287442438,-500.0,0.00010958,2]
[354146225,1740287442447,-500.0,0.00010958,2]
[354146227,1740287442456,-500.0,0.00010958,2]
[354146229,1740287442465,-330.96409187,0.00010958,2]
[354146231,1740287442474,-575.27662146,0.00010958,2]
[354146233,1740287442483,-500.0,0.00010958,2]
[354146235,1740287442492,-251.43981935,0.00010958,2]
[354146237,1740287442502,-500.0,0.00010958,2]
[354146239,1740287442511,-508.41372149,0.00010958,2]
[354146242,1740287442521,-529.10782388,0.00010958,2]
[354146243,1740287442530,-578.87,0.00010958,2]
[354146246,1740287442540,-175.86666463,0.00010958,2]
[354146248,1740287442549,-500.0,0.00010958,2]
[354146249,1740287442559,-503.81172762,0.00010958,2]
[354146251,1740287442568,-515.25685951,0.00010958,2]
[354146253,1740287442578,-505.55992339,0.00010958,2]
[354146255,1740287442587,-572.24082023,0.00010958,2]
[354146257,1740287442597,-505.75484172,0.00010958,2]
[354146260,1740287442606,-505.48536035,0.00010958,2]
[354146261,1740287442616,-500.0,0.00010958,2]
[354146263,1740287442625,-500.0,0.00010958,2]
[354146265,1740287442635,-505.6464334,0.00010958,2]
[354146267,1740287442644,-233.42,0.00010958,2]
[354146269,1740287442653,-500.0,0.00010958,2]
[354146271,1740287442662,-576.6297292,0.00010958,2]
[354146273,1740287442672,-500.0,0.00010958,2]
[354146275,1740287442681,-501.52363302,0.00010958,2]
[354146277,1740287442690,-521.85831038,0.00010958,2]
[354146279,1740287442699,-500.0,0.00010958,2]
[354146281,1740287442709,-291.09140764,0.00010958,2]
[354146283,1740287442718,-500.0,0.00010958,2]
[354146285,1740287442728,-500.0,0.00010958,2]
[354146287,1740287442737,-500.0,0.00010958,2]
[354146289,1740287442746,-500.0,0.00010958,2]
[354146291,1740287442755,-500.0,0.00010958,2]
[354146293,1740287442765,-152.48,0.00010958,2]
[354146295,1740287442775,-500.0,0.00010958,2]
[354146297,1740287442784,-500.0,0.00010958,2]
[354146299,1740287442794,-500.0,0.00010958,2]
[354146302,1740287442803,-500.0,0.00010958,2]
[354146303,1740287442813,-504.30377905,0.00010958,2]
[354146306,1740287442823,-500.0,0.00010958,2]
[354146308,1740287442833,-500.0,0.00010958,2]
[354146310,1740287442842,-258.13,0.00010958,2]
[354146312,1740287442854,-500.0,0.00010958,2]
[354146314,1740287442864,-500.0,0.00010958,2]
[354146316,1740287442873,-500.0,0.00010958,2]
[354146318,1740287442883,-219.5,0.00010958,2]
[354146320,1740287442892,-500.0,0.00010958,2]
[354146323,1740287442902,-282.62,0.00010958,2]
[354146325,1740287442911,-500.0,0.00010958,2]
[354146327,1740287442921,-500.0,0.00010958,2]
[354146329,1740287442930,-500.0,0.00010958,2]
[354146331,1740287442940,-500.0,0.00010958,2]
[354146333,1740287442949,-500.0,0.00010958,2]
[354146335,1740287442958,-500.0,0.00010958,2]
[354146337,1740287442967,-504.63077381,0.00010958,2]
[354146340,1740287442976,-500.0,0.00010958,2]
[354146343,1740287442985,-500.0,0.00010958,2]
[354146345,1740287442995,-507.24479554,0.00010958,2]
[354146347,1740287443004,-500.0,0.00010958,2]
[354146349,1740287443017,-500.0,0.00010958,2]
[354146350,1740287443027,-505.93091543,0.00010958,2]
[354146353,1740287443038,-500.0,0.00010958,2]
[354146355,1740287443047,-500.0,0.00010958,2]
[354146357,1740287443058,-151.0,0.00010958,2]
[354146359,1740287443068,-516.28246494,0.00010958,2]
[354146361,1740287443078,-502.7644894,0.00010958,2]
[354146363,1740287443088,-161.09767978,0.00010958,2]
[354146365,1740287443098,-500.0,0.00010958,2]
[354146367,1740287443107,-1000.0,0.00010958,2]
[354146369,1740287443117,-500.0,0.00010958,2]
[354146370,1740287443126,-500.0,0.00010958,2]
[354146372,1740287443135,-500.0,0.00010958,2]
[354146374,1740287443144,-500.0,0.00010958,2]
[354146377,1740287443154,-500.0,0.00010958,2]
[354146379,1740287443163,-502.87705368,0.00010958,2]
[354146380,1740287443173,-500.0,0.00010958,2]
[354146382,1740287443183,-500.0,0.00010958,2]
[354146384,1740287443193,-472.02,0.00010958,2]
[354146386,1740287443202,-505.42606673,0.00010958,2]
[354146388,1740287443211,-500.0,0.00010958,2]
[354146390,1740287443220,-500.0,0.00010958,2]
[354146392,1740287443230,-502.84052574,0.00010958,2]
[354146394,1740287443239,-500.0,0.00010958,2]
[354146396,1740287443248,-510.73156515,0.00010958,7]
[354146398,1740287443257,-500.0,0.00010958,2]
[354146400,1740287443268,-500.0,0.00010958,2]
[354146402,1740287443277,-500.0,0.00010958,2]
[354146404,1740287443286,-500.0,0.00010958,2]
[354146406,1740287443295,-500.0,0.00010958,2]
[354146408,1740287443305,-500.0,0.00010958,2]
[354146410,1740287443314,-502.38502609,0.00010958,2]
[354146412,1740287443323,-509.26449,0.00010958,2]
[354146414,1740287443332,-500.0,0.00010958,2]
[354146416,1740287443341,-500.0,0.00010958,2]
[354146418,1740287443351,-200.0,0.00010959,2]
[354146420,1740287443361,-150.0,0.00010959,2]
[354146422,1740287443371,-158.03,0.00010983,2]
[354146425,1740287443382,-1820.78698379,0.00010999,2]
[354146427,1740287443392,-245.37622187,0.0001104,2]
[354146429,1740287443402,-406.69480605,0.0001104,2]
[354146431,1740287443411,-500.0,0.0001104,2]
[354146433,1740287443421,-633.78,0.0001104,2]
[354146435,1740287443430,-502.66878288,0.00011041,2]
[354146437,1740287443439,-503.72586725,0.00011041,2]
[354146439,1740287443448,-506.55965797,0.00011041,2]
[354146441,1740287443458,-501.7813418,0.00011041,2]
[354146443,1740287443466,-514.97688274,0.00011041,2]
[354146445,1740287443476,-157.70290783,0.00011041,2]
[354146446,1740287443485,-204.51902108,0.00011041,2]
[354146448,1740287443494,-500.0,0.00011041,2]
[354146450,1740287443505,-506.74068827,0.00011041,2]
[354146452,1740287443514,-505.3801011,0.00011041,2]
[354146453,1740287443523,-503.09178467,0.00011041,2]
[354146454,1740287443532,-271.86391101,0.00011041,2]
[354146455,1740287443542,-374.48540917,0.00011041,2]
[354146456,1740287443552,-502.10185563,0.00011041,2]
[354146457,1740287443562,-238.94325008,0.00011041,2]
[354146458,1740287443572,-507.88714071,0.00011041,2]
[354146459,1740287443582,-500.0,0.00011041,2]
[354146460,1740287443591,-503.58440305,0.00011041,2]
[354146462,1740287443601,-500.97089703,0.00011041,2]
[354146464,1740287443610,-502.63890656,0.00011041,2]
[354146466,1740287443620,-502.32173242,0.00011041,2]
[354146468,1740287443629,-504.17050291,0.00011041,2]
[354146470,1740287443638,-500.0,0.00011041,2]
[354146472,1740287443647,-505.69758361,0.00011041,2]
[354146474,1740287443657,-151.0,0.00011041,2]
[354146476,1740287443673,-495.07176642,0.00011041,2]
[354146478,1740287443683,-497.86044199,0.00011041,2]
[354146480,1740287443692,-500.72694631,0.00011041,2]
[354146482,1740287443701,-506.07956376,0.00011041,2]
[354146484,1740287443711,-151.0,0.00011041,2]
[354146486,1740287443721,-603.8170227,0.00011041,2]
[354146488,1740287443730,-504.97787369,0.00011041,2]
[354146490,1740287443740,-509.04781582,0.00011041,2]
[354146492,1740287443749,-504.5374167,0.00011041,2]
[354146494,1740287443758,-508.59514629,0.00011041,2]
[354146496,1740287443768,-527.71628189,0.00011041,2]
[354146498,1740287443777,-507.99197576,0.00011041,2]
[354146500,1740287443787,-507.00667313,0.00011041,2]
[354146502,1740287443796,-505.74809036,0.00011041,2]
[354146518,1740287443940,-506.07871435,0.00011041,2]
[354146521,1740287443955,-514.71323971,0.00011041,2]